[Event "*** Titled Tuesday Blitz"]
[Site "Chess.com"]
[Date "2018.09.04"]
[Round "6"]
[White "Barcelona_Guy"]
[Black "MITerryble"]
[Result "0-1"]
[WhiteElo "2539"]
[BlackElo "2753"]
[TimeControl "180+2"]
[EndTime "14:58:24 PDT"]
[Termination "MITerryble won by checkmate"]

1. d4 {[%clk 0:03:01.9]} 1... Nf6 {[%clk 0:03:00.5]} 2. c4 {[%clk 0:03:02.5]}
2... e6 {[%clk 0:03:01.9]} 3. Nf3 {[%clk 0:03:03.3]} 3... Bb4+ {[%clk
0:03:02.4]} 4. Bd2 {[%clk 0:03:03.9]} 4... c5 {[%clk 0:03:03.6]} 5. Bxb4 {[%clk
0:03:03]} 5... cxb4 {[%clk 0:03:04.8]} 6. Nbd2 {[%clk 0:03:04.4]} 6... O-O
{[%clk 0:03:05.8]} 7. e3 {[%clk 0:03:05.5]} 7... d6 {[%clk 0:03:07.2]} 8. Bd3
{[%clk 0:03:06.5]} 8... Nc6 {[%clk 0:03:08.5]} 9. Qc2 {[%clk 0:03:04.8]} 9... e5
{[%clk 0:03:09.7]} 10. O-O {[%clk 0:03:01.3]} 10... Re8 {[%clk 0:03:10.6]} 11.
d5 {[%clk 0:02:33]} 11... Nb8 {[%clk 0:03:10.8]} 12. a3 {[%clk 0:02:27.9]} 12...
Na6 {[%clk 0:03:03.9]} 13. e4 {[%clk 0:02:19.1]} 13... bxa3 {[%clk 0:03:03.9]}
14. Rxa3 {[%clk 0:02:18.7]} 14... Nb4 {[%clk 0:03:02.7]} 15. Qc3 {[%clk
0:02:16.7]} 15... Qb6 {[%clk 0:03:03.6]} 16. h3 {[%clk 0:02:11.7]} 16... a5
{[%clk 0:03:03.1]} 17. Rfa1 {[%clk 0:02:10.6]} 17... Qc7 {[%clk 0:03:03]} 18. c5
{[%clk 0:01:52.8]} 18... Nxd3 {[%clk 0:02:54.5]} 19. Qxd3 {[%clk 0:01:53.9]}
19... Qxc5 {[%clk 0:02:55.6]} 20. Rc3 {[%clk 0:01:51.8]} 20... Qb4 {[%clk
0:02:56]} 21. Rb3 {[%clk 0:01:47.6]} 21... Qc5 {[%clk 0:02:56.9]} 22. Rb5 {[%clk
0:01:26.9]} 22... Qc7 {[%clk 0:02:57]} 23. Nc4 {[%clk 0:01:28.3]} 23... Nd7
{[%clk 0:02:56.7]} 24. Rbxa5 {[%clk 0:01:27.4]} 24... Rxa5 {[%clk 0:02:57.1]}
25. Nxa5 {[%clk 0:01:26.4]} 25... g6 {[%clk 0:02:31.3]} 26. b4 {[%clk
0:01:22.8]} 26... Nb6 {[%clk 0:02:28.8]} 27. Qd2 {[%clk 0:01:20.1]} 27... Kg7
{[%clk 0:02:28.4]} 28. Rc1 {[%clk 0:01:20.2]} 28... Qe7 {[%clk 0:02:27.9]} 29.
Qe3 {[%clk 0:01:20.4]} 29... Qd8 {[%clk 0:02:27.6]} 30. Qc3 {[%clk 0:01:09.4]}
30... Re7 {[%clk 0:02:26.8]} 31. Nd2 {[%clk 0:01:03.2]} 31... h6 {[%clk
0:02:22.2]} 32. Ndc4 {[%clk 0:00:55.7]} 32... Rc7 {[%clk 0:02:22.4]} 33. Qd2
{[%clk 0:00:54.7]} 33... Nxc4 {[%clk 0:02:13.4]} 34. Nxc4 {[%clk 0:00:56]} 34...
f5 {[%clk 0:02:00.8]} 35. exf5 {[%clk 0:00:55.9]} 35... Bxf5 {[%clk 0:02:01.4]}
36. Ne3 {[%clk 0:00:54.7]} 36... Qc8 {[%clk 0:01:59.9]} 37. Rxc7+ {[%clk
0:00:51.5]} 37... Qxc7 {[%clk 0:02:01.8]} 38. h4 {[%clk 0:00:30.6]} 38... Bd7
{[%clk 0:01:52.6]} 39. Kh2 {[%clk 0:00:27.5]} 39... Qd8 {[%clk 0:01:30.1]} 40.
g3 {[%clk 0:00:26.6]} 40... Qf6 {[%clk 0:01:31.1]} 41. Kg1 {[%clk 0:00:23.1]}
41... Qd8 {[%clk 0:01:24.8]} 42. Qc3 {[%clk 0:00:22.8]} 42... Kf7 {[%clk
0:01:20.8]} 43. Nc4 {[%clk 0:00:23.3]} 43... Bb5 {[%clk 0:01:05.5]} 44. Qf3+
{[%clk 0:00:22.4]} 44... Kg7 {[%clk 0:01:05.8]} 45. Na5 {[%clk 0:00:21.6]} 45...
b6 {[%clk 0:01:01.5]} 46. Nc6 {[%clk 0:00:21.8]} 46... Qf6 {[%clk 0:01:02.5]}
47. Qe3 {[%clk 0:00:21.6]} 47... Bc4 {[%clk 0:00:57.3]} 48. Qxb6 {[%clk
0:00:20]} 48... Bxd5 {[%clk 0:00:58.7]} 49. Qc7+ {[%clk 0:00:19.6]} 49... Kh8
{[%clk 0:00:46.7]} 50. Qc8+ {[%clk 0:00:13.4]} 50... Kg7 {[%clk 0:00:47.4]} 51.
Qc7+ {[%clk 0:00:14.6]} 51... Kh8 {[%clk 0:00:48]} 52. Qc8+ {[%clk 0:00:15.9]}
52... Kh7 {[%clk 0:00:45]} 53. Qd7+ {[%clk 0:00:16.7]} 53... Kh8 {[%clk
0:00:41.1]} 54. Qe8+ {[%clk 0:00:09.8]} 54... Kg7 {[%clk 0:00:34.3]} 55. Qd7+
{[%clk 0:00:11]} 55... Kf8 {[%clk 0:00:35.3]} 56. Qc8+ {[%clk 0:00:07.1]} 56...
Kf7 {[%clk 0:00:34.9]} 57. Qc7+ {[%clk 0:00:06.7]} 57... Kg8 {[%clk 0:00:36.2]}
58. Qc8+ {[%clk 0:00:06.9]} 58... Kg7 {[%clk 0:00:34.5]} 59. Qd7+ {[%clk
0:00:06.7]} 59... Kh8 {[%clk 0:00:12.5]} 60. Qc8+ {[%clk 0:00:06.3]} 60... Bg8
{[%clk 0:00:09]} 61. Qd7 {[%clk 0:00:04.5]} 61... e4 {[%clk 0:00:07.5]} 62. Ne7
{[%clk 0:00:05]} 62... Bf7 {[%clk 0:00:08.2]} 63. Nc8 {[%clk 0:00:04.6]} 63...
e3 {[%clk 0:00:07.3]} 64. fxe3 {[%clk 0:00:05.2]} 64... Qf3 {[%clk 0:00:06.9]}
65. Nxd6 {[%clk 0:00:03.8]} 65... Qxg3+ {[%clk 0:00:07.8]} 66. Kf1 {[%clk
0:00:05.3]} 66... Qf3+ {[%clk 0:00:08.8]} 67. Ke1 {[%clk 0:00:06.7]} 67... Qxe3+
{[%clk 0:00:10.7]} 68. Kf1 {[%clk 0:00:07.4]} 68... Qf4+ {[%clk 0:00:11.4]} 69.
Kg1 {[%clk 0:00:08.2]} 69... Qg3+ {[%clk 0:00:09.3]} 70. Kf1 {[%clk 0:00:09.5]}
70... Qf3+ {[%clk 0:00:10]} 71. Kg1 {[%clk 0:00:10.8]} 71... Qe3+ {[%clk
0:00:10.2]} 72. Kf1 {[%clk 0:00:12.2]} 72... Qd3+ {[%clk 0:00:09]} 73. Kg1
{[%clk 0:00:13.4]} 73... Qd4+ {[%clk 0:00:10.3]} 74. Kh2 {[%clk 0:00:07.7]}
74... Qf2+ {[%clk 0:00:10.6]} 75. Kh3 {[%clk 0:00:07.9]} 75... Qf3+ {[%clk
0:00:11.3]} 76. Kh2 {[%clk 0:00:09.2]} 76... Qf4+ {[%clk 0:00:12.6]} 77. Kg1
{[%clk 0:00:09.5]} 77... Bg8 {[%clk 0:00:12.1]} 78. Qe7 {[%clk 0:00:08.9]} 78...
Qg3+ {[%clk 0:00:10.9]} 79. Kf1 {[%clk 0:00:09.6]} 79... Qf4+ {[%clk 0:00:11.4]}
80. Kg1 {[%clk 0:00:10.8]} 80... Qd4+ {[%clk 0:00:12.5]} 81. Kf1 {[%clk
0:00:10.7]} 81... Qa1+ {[%clk 0:00:12.3]} 82. Kf2 {[%clk 0:00:10.7]} 82... Qb2+
{[%clk 0:00:13.5]} 83. Kg1 {[%clk 0:00:11.3]} 83... Qc1+ {[%clk 0:00:13]} 84.
Kf2 {[%clk 0:00:11.4]} 84... Qd2+ {[%clk 0:00:14.2]} 85. Kg1 {[%clk 0:00:12.4]}
85... Qd4+ {[%clk 0:00:14.9]} 86. Kh2 {[%clk 0:00:11.4]} 86... Qf4+ {[%clk
0:00:11.9]} 87. Kg1 {[%clk 0:00:12.2]} 87... g5 {[%clk 0:00:13.8]} 88. hxg5
{[%clk 0:00:11.9]} 88... hxg5 {[%clk 0:00:15.7]} 89. Qd7 {[%clk 0:00:09.5]}
89... Qe3+ {[%clk 0:00:14.6]} 90. Kh2 {[%clk 0:00:09.8]} 90... Qf2+ {[%clk
0:00:15]} 91. Kh3 {[%clk 0:00:09.2]} 91... Qh4+ {[%clk 0:00:15.7]} 92. Kg2
{[%clk 0:00:10.4]} 92... Bd5+ {[%clk 0:00:17.6]} 93. Kg1 {[%clk 0:00:10.8]}
93... Qe1+ {[%clk 0:00:16.8]} 94. Kh2 {[%clk 0:00:11.8]} 94... Qf2+ {[%clk
0:00:18.1]} 95. Kh3 {[%clk 0:00:13.1]} 95... Qg2# {[%clk 0:00:19.7]} 0-1

[Event "*** Titled Tuesday Blitz"]
[Site "Chess.com"]
[Date "2018.09.04"]
[Round "6"]
[White "Orest_Vovk"]
[Black "champ2005"]
[Result "1/2-1/2"]
[WhiteElo "2432"]
[BlackElo "2731"]
[TimeControl "180+2"]
[EndTime "15:00:41 PDT"]
[Termination "Game drawn - insufficient material"]

1. g4 {[%clk 0:03:01.9]} 1... d5 {[%clk 0:03:00.3]} 2. h3 {[%clk 0:03:02.3]}
2... e5 {[%clk 0:02:57.3]} 3. Bg2 {[%clk 0:03:03.5]} 3... Nc6 {[%clk 0:02:58]}
4. c4 {[%clk 0:03:04]} 4... d4 {[%clk 0:02:57.4]} 5. Bxc6+ {[%clk 0:03:04.8]}
5... bxc6 {[%clk 0:02:58.3]} 6. Qa4 {[%clk 0:03:06.3]} 6... Bd7 {[%clk
0:02:58.8]} 7. d3 {[%clk 0:03:07.1]} 7... c5 {[%clk 0:02:57.9]} 8. Qa6 {[%clk
0:03:07.7]} 8... Bd6 {[%clk 0:02:58]} 9. Nf3 {[%clk 0:03:08.1]} 9... Ne7 {[%clk
0:02:59.1]} 10. Nbd2 {[%clk 0:03:08.6]} 10... O-O {[%clk 0:02:59.5]} 11. Ne4
{[%clk 0:03:09.4]} 11... Bc6 {[%clk 0:03:00.6]} 12. Nfd2 {[%clk 0:03:06.4]}
12... Qd7 {[%clk 0:03:00.1]} 13. b3 {[%clk 0:02:58.1]} 13... Ng6 {[%clk
0:02:41.1]} 14. Ba3 {[%clk 0:02:52]} 14... Nf4 {[%clk 0:02:41.4]} 15. Rh2 {[%clk
0:02:48.9]} 15... f5 {[%clk 0:02:37.2]} 16. Nxc5 {[%clk 0:02:44.3]} 16... Bxc5
{[%clk 0:02:37.4]} 17. Bxc5 {[%clk 0:02:42.7]} 17... Rf7 {[%clk 0:02:38.6]} 18.
gxf5 {[%clk 0:02:31]} 18... Rxf5 {[%clk 0:02:37.5]} 19. f3 {[%clk 0:02:28.3]}
19... Rf6 {[%clk 0:02:36.6]} 20. Qa5 {[%clk 0:02:20.1]} 20... Nxh3 {[%clk
0:02:30]} 21. O-O-O {[%clk 0:02:13.2]} 21... Nf4 {[%clk 0:02:30.8]} 22. Rdh1
{[%clk 0:02:03.4]} 22... h6 {[%clk 0:02:30.8]} 23. Kc2 {[%clk 0:01:57.4]} 23...
Rg6 {[%clk 0:02:29.1]} 24. Ba3 {[%clk 0:01:52.3]} 24... Re8 {[%clk 0:02:28.4]}
25. Bc1 {[%clk 0:01:46.3]} 25... a6 {[%clk 0:02:23.8]} 26. Nf1 {[%clk
0:01:38.3]} 26... Nxe2 {[%clk 0:02:15.8]} 27. Rxe2 {[%clk 0:01:35.5]} 27... Bxf3
{[%clk 0:02:16.5]} 28. Rhh2 {[%clk 0:01:36.4]} 28... Bxe2 {[%clk 0:02:17.3]} 29.
Rxe2 {[%clk 0:01:38.3]} 29... e4 {[%clk 0:02:18.6]} 30. Rxe4 {[%clk 0:01:30.8]}
30... Rxe4 {[%clk 0:02:19.2]} 31. dxe4 {[%clk 0:01:32.1]} 31... Rg1 {[%clk
0:02:18.1]} 32. Nd2 {[%clk 0:01:25.3]} 32... d3+ {[%clk 0:02:18.9]} 33. Kb1
{[%clk 0:01:23]} 33... Qd4 {[%clk 0:01:55.7]} 34. Nf3 {[%clk 0:01:10.5]} 34...
d2 {[%clk 0:01:14.1]} 35. Nxd2 {[%clk 0:00:44.6]} 35... Qd3+ {[%clk 0:01:13.7]}
36. Kb2 {[%clk 0:00:43.9]} 36... Rg2 {[%clk 0:01:14.2]} 37. Qd5+ {[%clk
0:00:31.1]} 37... Qxd5 {[%clk 0:01:14.6]} 38. cxd5 {[%clk 0:00:32.9]} 38... h5
{[%clk 0:01:15.4]} 39. Kc3 {[%clk 0:00:28.8]} 39... h4 {[%clk 0:01:16.3]} 40.
Nc4 {[%clk 0:00:27.4]} 40... h3 {[%clk 0:01:15.1]} 41. Bf4 {[%clk 0:00:24.9]}
41... h2 {[%clk 0:01:14.7]} 42. Bxh2 {[%clk 0:00:25.7]} 42... Rxh2 {[%clk
0:01:16.6]} 43. a4 {[%clk 0:00:24.9]} 43... Kf7 {[%clk 0:01:15.4]} 44. b4 {[%clk
0:00:24.7]} 44... g5 {[%clk 0:01:12.8]} 45. b5 {[%clk 0:00:21.2]} 45... axb5
{[%clk 0:01:13.4]} 46. axb5 {[%clk 0:00:23]} 46... Ke7 {[%clk 0:01:12.7]} 47.
Ne5 {[%clk 0:00:21.5]} 47... Rg2 {[%clk 0:01:10.5]} 48. Kd4 {[%clk 0:00:18.3]}
48... g4 {[%clk 0:01:11.6]} 49. Nc6+ {[%clk 0:00:19.3]} 49... Ke8 {[%clk
0:01:08.2]} 50. Ke3 {[%clk 0:00:17.2]} 50... g3 {[%clk 0:01:00.6]} 51. Kf3
{[%clk 0:00:17.3]} 51... Rg1 {[%clk 0:01:01.6]} 52. Nd4 {[%clk 0:00:17.1]} 52...
Kd7 {[%clk 0:00:58.8]} 53. Ne2 {[%clk 0:00:17.1]} 53... Rb1 {[%clk 0:00:58.4]}
54. Nxg3 {[%clk 0:00:18.3]} 54... Rxb5 {[%clk 0:00:59.1]} 55. Kf4 {[%clk
0:00:19.1]} 55... Rb1 {[%clk 0:00:54.3]} 56. Nf5 {[%clk 0:00:19.4]} 56... Rf1+
{[%clk 0:00:54]} 57. Ke5 {[%clk 0:00:20.5]} 57... Kc8 {[%clk 0:00:48.5]} 58. Kf6
{[%clk 0:00:21.1]} 58... Kd7 {[%clk 0:00:43.6]} 59. e5 {[%clk 0:00:21.9]} 59...
Re1 {[%clk 0:00:36.9]} 60. e6+ {[%clk 0:00:21.6]} 60... Ke8 {[%clk 0:00:32.3]}
61. Ng7+ {[%clk 0:00:17.5]} 61... Kf8 {[%clk 0:00:28.5]} 62. Nf5 {[%clk
0:00:15.7]} 62... Rf1 {[%clk 0:00:21.7]} 63. Ke5 {[%clk 0:00:16]} 63... Ke8
{[%clk 0:00:20.7]} 64. Nd4 {[%clk 0:00:14.3]} 64... Re1+ {[%clk 0:00:21.1]} 65.
Kf6 {[%clk 0:00:15]} 65... Rf1+ {[%clk 0:00:21.1]} 66. Nf5 {[%clk 0:00:15.8]}
66... Kf8 {[%clk 0:00:20.6]} 67. Ke5 {[%clk 0:00:10.2]} 67... Rf2 {[%clk
0:00:18.3]} 68. Nd4 {[%clk 0:00:08.9]} 68... Kg7 {[%clk 0:00:16.4]} 69. Nb5
{[%clk 0:00:07.5]} 69... Rc2 {[%clk 0:00:17]} 70. Na7 {[%clk 0:00:06.6]} 70...
Kf8 {[%clk 0:00:16.7]} 71. Nc6 {[%clk 0:00:07.8]} 71... Ke8 {[%clk 0:00:18]} 72.
Kd4 {[%clk 0:00:08.8]} 72... Rd2+ {[%clk 0:00:18.3]} 73. Kc4 {[%clk 0:00:09.6]}
73... Re2 {[%clk 0:00:18.6]} 74. Kd3 {[%clk 0:00:10.6]} 74... Re1 {[%clk
0:00:19]} 75. Kd4 {[%clk 0:00:11.7]} 75... Kf8 {[%clk 0:00:18.5]} 76. Kc5 {[%clk
0:00:12.1]} 76... Rc1+ {[%clk 0:00:18.7]} 77. Kb5 {[%clk 0:00:13]} 77... Kg7
{[%clk 0:00:20]} 78. Nd8 {[%clk 0:00:11.7]} 78... Kf6 {[%clk 0:00:19.7]} 79. Nc6
{[%clk 0:00:12.7]} 79... Rc2 {[%clk 0:00:19.4]} 80. Ka6 {[%clk 0:00:10.7]} 80...
Rc5 {[%clk 0:00:19.2]} 81. Nb4 {[%clk 0:00:09.8]} 81... Ke7 {[%clk 0:00:18.8]}
82. Nc6+ {[%clk 0:00:05.6]} 82... Kd6 {[%clk 0:00:19.2]} 83. e7 {[%clk
0:00:06.8]} 83... Kd7 {[%clk 0:00:20.4]} 84. Kb7 {[%clk 0:00:07.7]} 84... Rxd5
{[%clk 0:00:21]} 85. e8=Q+ {[%clk 0:00:08.8]} 85... Kxe8 {[%clk 0:00:21.7]} 86.
Kxc7 {[%clk 0:00:10.7]} 86... Rd7+ {[%clk 0:00:23]} 87. Kb6 {[%clk 0:00:11.9]}
87... Rd1 {[%clk 0:00:24.2]} 88. Kc5 {[%clk 0:00:13.1]} 88... Kd7 {[%clk
0:00:25.2]} 89. Ne5+ {[%clk 0:00:13.6]} 89... Ke6 {[%clk 0:00:26.4]} 90. Nc6
{[%clk 0:00:14.5]} 90... Rc1+ {[%clk 0:00:27.6]} 91. Kb5 {[%clk 0:00:15]} 91...
Kd6 {[%clk 0:00:28.9]} 92. Nd4 {[%clk 0:00:13.5]} 92... Kd5 {[%clk 0:00:27.9]}
93. Nb3 {[%clk 0:00:13.9]} 93... Rc4 {[%clk 0:00:28.5]} 94. Na5 {[%clk
0:00:13.5]} 94... Rh4 {[%clk 0:00:29.1]} 95. Nb3 {[%clk 0:00:13.4]} 95... Ke4
{[%clk 0:00:28.7]} 96. Kc4 {[%clk 0:00:14]} 96... Ke3+ {[%clk 0:00:29.9]} 97.
Kc3 {[%clk 0:00:14.3]} 97... Rh1 {[%clk 0:00:29.8]} 98. Kc4 {[%clk 0:00:14.3]}
98... Rh8 {[%clk 0:00:29.5]} 99. Kd5 {[%clk 0:00:14.2]} 99... Rd8+ {[%clk
0:00:30.1]} 100. Kc4 {[%clk 0:00:14.2]} 100... Rc8+ {[%clk 0:00:31.4]} 101. Kd5
{[%clk 0:00:14.8]} 101... Kd3 {[%clk 0:00:32]} 102. Nc5+ {[%clk 0:00:15.4]}
102... Kc3 {[%clk 0:00:33.4]} 103. Ne4+ {[%clk 0:00:16.7]} 103... Kb4 {[%clk
0:00:34.6]} 104. Nd6 {[%clk 0:00:17.4]} 104... Rc1 {[%clk 0:00:34.9]} 105. Ne4
{[%clk 0:00:17.9]} 105... Rd1+ {[%clk 0:00:35.9]} 106. Ke5 {[%clk 0:00:19]}
106... Kc4 {[%clk 0:00:37.2]} 107. Nd6+ {[%clk 0:00:19.8]} 107... Kc5 {[%clk
0:00:38.5]} 108. Ne4+ {[%clk 0:00:20.6]} 108... Kc6 {[%clk 0:00:39.9]} 109. Nf2
{[%clk 0:00:16.3]} 109... Rd8 {[%clk 0:00:38.4]} 110. Ne4 {[%clk 0:00:16.6]}
110... Rd5+ {[%clk 0:00:37.7]} 111. Ke6 {[%clk 0:00:15.8]} 111... Ra5 {[%clk
0:00:36.5]} 112. Nf6 {[%clk 0:00:16.2]} 112... Kc5 {[%clk 0:00:37.4]} 113. Ne4+
{[%clk 0:00:17]} 113... Kd4 {[%clk 0:00:38.5]} 114. Nd6 {[%clk 0:00:16.3]}
114... Re5+ {[%clk 0:00:39.4]} 115. Kf6 {[%clk 0:00:14.4]} 115... Kd5 {[%clk
0:00:40.6]} 116. Nf7 {[%clk 0:00:12.7]} 116... Re1 {[%clk 0:00:40.7]} 117. Ng5
{[%clk 0:00:12.7]} 117... Rf1+ {[%clk 0:00:41.1]} 118. Kg6 {[%clk 0:00:11.1]}
118... Ke5 {[%clk 0:00:41.2]} 119. Nf7+ {[%clk 0:00:12.2]} 119... Ke6 {[%clk
0:00:42.5]} 120. Ng5+ {[%clk 0:00:13.2]} 120... Ke7 {[%clk 0:00:44.1]} 121. Ne4
{[%clk 0:00:12.4]} 121... Rf4 {[%clk 0:00:43.3]} 122. Ng5 {[%clk 0:00:12.3]}
122... Rf6+ {[%clk 0:00:44.5]} 123. Kh5 {[%clk 0:00:12.5]} 123... Rf8 {[%clk
0:00:41.4]} 124. Kg4 {[%clk 0:00:13.1]} 124... Kd6 {[%clk 0:00:41.4]} 125. Nf3
{[%clk 0:00:13]} 125... Kd5 {[%clk 0:00:42.5]} 126. Ng5 {[%clk 0:00:14]} 126...
Ke5 {[%clk 0:00:43.8]} 127. Nf3+ {[%clk 0:00:14.8]} 127... Ke4 {[%clk
0:00:45.2]} 128. Ng5+ {[%clk 0:00:15.9]} 128... Ke3 {[%clk 0:00:46.8]} 129. Ne6
{[%clk 0:00:15.8]} 129... Rf7 {[%clk 0:00:47.5]} 130. Ng5 {[%clk 0:00:15.7]}
130... Rf6 {[%clk 0:00:48.9]} 131. Nh7 {[%clk 0:00:14.7]} 131... Rf1 {[%clk
0:00:46.6]} 132. Ng5 {[%clk 0:00:14.2]} 132... Kd4 {[%clk 0:00:47.8]} 133. Nf3+
{[%clk 0:00:12.7]} 133... Ke4 {[%clk 0:00:48.9]} 134. Nd2+ {[%clk 0:00:13.5]}
134... Ke3 {[%clk 0:00:48.6]} 135. Nxf1+ {[%clk 0:00:15.4]} 1/2-1/2

[Event "*** Titled Tuesday Blitz"]
[Site "Chess.com"]
[Date "2018.09.04"]
[Round "7"]
[White "Genghis_K"]
[Black "NikolaGry"]
[Result "1-0"]
[WhiteElo "2854"]
[BlackElo "2606"]
[TimeControl "180+2"]
[EndTime "15:05:56 PDT"]
[Termination "Genghis_K won by resignation"]

1. e4 {[%clk 0:03:01.9]} 1... d5 {[%clk 0:03:00.2]} 2. exd5 {[%clk 0:03:03]}
2... Nf6 {[%clk 0:03:01.2]} 3. d4 {[%clk 0:03:04.1]} 3... Nxd5 {[%clk 0:03:02]}
4. Nf3 {[%clk 0:03:03.6]} 4... g6 {[%clk 0:03:01.1]} 5. c4 {[%clk 0:03:04.1]}
5... Nb6 {[%clk 0:03:01.9]} 6. a4 {[%clk 0:03:05.4]} 6... Bg7 {[%clk 0:02:51.7]}
7. a5 {[%clk 0:03:05.5]} 7... N6d7 {[%clk 0:02:51.9]} 8. Nc3 {[%clk 0:03:05.7]}
8... O-O {[%clk 0:02:50.2]} 9. h4 {[%clk 0:03:05.7]} 9... e5 {[%clk 0:02:48.9]}
10. d5 {[%clk 0:03:07]} 10... e4 {[%clk 0:02:31.6]} 11. Ng5 {[%clk 0:03:03.8]}
11... Nc5 {[%clk 0:01:59.7]} 12. h5 {[%clk 0:02:56.6]} 12... Re8 {[%clk
0:01:51.9]} 13. Be3 {[%clk 0:02:48.6]} 13... Nbd7 {[%clk 0:01:41.4]} 14. hxg6
{[%clk 0:02:36.7]} 14... hxg6 {[%clk 0:01:40.9]} 15. Qg4 {[%clk 0:02:38.1]}
15... Ne5 {[%clk 0:01:15.3]} 16. Qh4 {[%clk 0:02:36.9]} 16... Ncd3+ {[%clk
0:01:08.2]} 17. Bxd3 {[%clk 0:02:34.1]} 17... exd3 {[%clk 0:00:52]} 18. Qh7+
{[%clk 0:02:27.1]} 18... Kf8 {[%clk 0:00:51.3]} 19. Bc5+ {[%clk 0:02:28.4]}
19... Re7 {[%clk 0:00:43.9]} 20. Qh8+ {[%clk 0:02:29.7]} 20... Bxh8 {[%clk
0:00:31.9]} 21. Rxh8+ {[%clk 0:02:31.2]} 21... Kg7 {[%clk 0:00:33]} 22. Rxd8
{[%clk 0:02:32.8]} 22... Nf3+ {[%clk 0:00:33]} 23. Kf1 {[%clk 0:02:34.3]} 23...
Nd2+ {[%clk 0:00:29]} 24. Kg1 {[%clk 0:02:33.7]} 1-0

[Event "*** Titled Tuesday Blitz"]
[Site "Chess.com"]
[Date "2018.09.04"]
[Round "7"]
[White "Elshan1985"]
[Black "KhalilMousavi77"]
[Result "0-1"]
[WhiteElo "2725"]
[BlackElo "2770"]
[TimeControl "180+2"]
[EndTime "15:06:14 PDT"]
[Termination "KhalilMousavi77 won by resignation"]

1. Nf3 {[%clk 0:03:01.9]} 1... Nf6 {[%clk 0:02:57.3]} 2. c4 {[%clk 0:03:02.9]}
2... g6 {[%clk 0:02:56.7]} 3. Nc3 {[%clk 0:03:02.1]} 3... d5 {[%clk 0:02:57.5]}
4. cxd5 {[%clk 0:03:02.7]} 4... Nxd5 {[%clk 0:02:57.3]} 5. Qb3 {[%clk
0:03:03.5]} 5... Nb6 {[%clk 0:02:56]} 6. d4 {[%clk 0:03:04.1]} 6... Bg7 {[%clk
0:02:54.7]} 7. e4 {[%clk 0:03:05.1]} 7... O-O {[%clk 0:02:53.7]} 8. Be3 {[%clk
0:03:00.4]} 8... Bg4 {[%clk 0:02:52.6]} 9. Ne5 {[%clk 0:03:01.3]} 9... Be6
{[%clk 0:02:44.5]} 10. Qa3 {[%clk 0:02:57]} 10... Qd6 {[%clk 0:02:42.7]} 11.
Qxd6 {[%clk 0:02:34.7]} 11... cxd6 {[%clk 0:02:41.4]} 12. Nf3 {[%clk 0:02:35.7]}
12... d5 {[%clk 0:02:40.4]} 13. e5 {[%clk 0:02:35.6]} 13... Nc6 {[%clk
0:02:38.4]} 14. b3 {[%clk 0:02:34.1]} 14... Rac8 {[%clk 0:02:36.2]} 15. Kd2
{[%clk 0:02:33.5]} 15... f6 {[%clk 0:02:33.8]} 16. exf6 {[%clk 0:02:34.4]} 16...
exf6 {[%clk 0:02:31.7]} 17. Bb5 {[%clk 0:02:32.6]} 17... Kf7 {[%clk 0:02:19.2]}
18. Rac1 {[%clk 0:02:26.6]} 18... Rfe8 {[%clk 0:02:17.2]} 19. Na4 {[%clk
0:02:19.4]} 19... Nxa4 {[%clk 0:02:11.8]} 20. Bxa4 {[%clk 0:02:20.5]} 20... Bf8
{[%clk 0:02:09.7]} 21. Bxc6 {[%clk 0:02:19.3]} 21... bxc6 {[%clk 0:02:08.2]} 22.
Kc2 {[%clk 0:02:17.2]} 22... Ba3 {[%clk 0:02:05.4]} 23. Rcd1 {[%clk 0:02:12.8]}
23... Bf5+ {[%clk 0:02:05.8]} 24. Kd2 {[%clk 0:02:14]} 24... Bb4+ {[%clk
0:02:03.2]} 25. Ke2 {[%clk 0:02:13.5]} 25... a5 {[%clk 0:01:58.8]} 26. Rc1
{[%clk 0:02:09.8]} 26... a4 {[%clk 0:01:54.6]} 27. Nd2 {[%clk 0:02:03.6]} 27...
c5 {[%clk 0:01:49.7]} 28. bxa4 {[%clk 0:01:47.5]} 28... cxd4 {[%clk 0:01:47.2]}
29. Rxc8 {[%clk 0:01:48.4]} 29... Bxc8 {[%clk 0:01:48]} 30. Rb1 {[%clk
0:01:45.9]} 30... dxe3 {[%clk 0:01:43]} 31. Rxb4 {[%clk 0:01:45.5]} 31... Ba6+
{[%clk 0:01:42.7]} 32. Kd1 {[%clk 0:01:45.2]} 32... exd2 {[%clk 0:01:38.6]} 33.
Kxd2 {[%clk 0:01:46.1]} 0-1

[Event "*** Titled Tuesday Blitz"]
[Site "Chess.com"]
[Date "2018.09.04"]
[Round "7"]
[White "xberli"]
[Black "Divertissement"]
[Result "0-1"]
[WhiteElo "2532"]
[BlackElo "2544"]
[TimeControl "180+2"]
[EndTime "15:06:28 PDT"]
[Termination "Divertissement won by resignation"]

1. e4 {[%clk 0:03:01.9]} 1... c5 {[%clk 0:03:00.6]} 2. Nf3 {[%clk 0:03:02.8]}
2... d6 {[%clk 0:03:02]} 3. d4 {[%clk 0:03:03.9]} 3... cxd4 {[%clk 0:03:03.9]}
4. Nxd4 {[%clk 0:03:05.5]} 4... Nf6 {[%clk 0:03:03.9]} 5. Nc3 {[%clk 0:03:06.7]}
5... Nc6 {[%clk 0:03:05.5]} 6. Bc4 {[%clk 0:03:02.4]} 6... e6 {[%clk 0:03:05.7]}
7. Be3 {[%clk 0:03:03.3]} 7... Be7 {[%clk 0:03:07]} 8. Qe2 {[%clk 0:03:04.6]}
8... O-O {[%clk 0:02:53.7]} 9. O-O-O {[%clk 0:03:05.2]} 9... Na5 {[%clk
0:02:41.9]} 10. Bd3 {[%clk 0:03:02.6]} 10... e5 {[%clk 0:02:20.9]} 11. Nb3
{[%clk 0:02:44.4]} 11... Be6 {[%clk 0:02:03.3]} 12. Rhg1 {[%clk 0:02:38.1]}
12... Nxb3+ {[%clk 0:02:01.1]} 13. axb3 {[%clk 0:02:35.2]} 13... a5 {[%clk
0:02:02]} 14. g4 {[%clk 0:02:34.3]} 14... a4 {[%clk 0:01:57.7]} 15. bxa4 {[%clk
0:02:30.8]} 15... Qa5 {[%clk 0:01:44.6]} 16. g5 {[%clk 0:02:27.3]} 16... Nd7
{[%clk 0:01:45.7]} 17. Bb5 {[%clk 0:02:21.4]} 17... Rfc8 {[%clk 0:01:40.4]} 18.
Nd5 {[%clk 0:02:09.5]} 18... Bf8 {[%clk 0:01:28.7]} 19. Nf6+ {[%clk 0:01:46.5]}
19... Nxf6 {[%clk 0:01:28.3]} 20. gxf6 {[%clk 0:01:48.4]} 20... g6 {[%clk
0:01:26.1]} 21. Qd2 {[%clk 0:01:30.7]} 21... Qxb5 {[%clk 0:01:22.7]} 22. Bh6
{[%clk 0:01:11.4]} 22... Rxa4 {[%clk 0:01:16.7]} 23. Kb1 {[%clk 0:01:11.2]}
23... Ra1+ {[%clk 0:01:08.9]} 0-1